Cogmind - Beta 15 @@@ ROGUE MODE // 2025.07.13 @ 21:42:39 Player: vorpal Result: Self-destructed Performance ------------- Evolutions (2) 1000 Regions Visited (5) 1000 Robots Destroyed (29) 145 Value Destroyed (474) 474 Prototype IDs (23) 460 Alien Tech Used (0) 0 Bonus (300) 300 TOTAL SCORE: 3379 Bonus ------- Aligned with FarCom 300 Cogmind --------- Core Integrity 537/550 Matter 294/300 Energy 125/125 System Corruption 4% Temperature Cool (42) Movement Flying (37) Location -8/Materials Parts ------- > --- POWER (2) -------- Light Ion Engine > --- PROPULSION (3) --- Flight Unit Flight Unit > --- UTILITY (4) ------ Visual Processing Unit Signal Interpreter Hacking Suite > --- WEAPON (2) ------- Small Laser > --- INVENTORY (5) ---- Modified TNC Grenade Launcher Improved Datajack Peak State ------------ > --- POWER ------------ Light Ion Engine > --- PROPULSION ------- Flight Unit Flight Unit Flight Unit > --- UTILITY ---------- Visual Processing Unit Signal Interpreter Hacking Suite > --- WEAPON ----------- Small Laser Small Laser > --- INVENTORY -------- Modified TNC Grenade Launcher Improved Datajack [Rating: 13] Favorites ----------- Power Light Ion Engine Engine Light Ion Engine Propulsion Flight Unit Wheel Wheel Flight Unit Flight Unit Utility Visual Processing Unit Device Heat Sink Storage Medium Matter Pod Processor Visual Processing Unit Hackware Hacking Suite Weapon Small Laser Energy Gun Small Laser Ballistic Gun Light Assault Rifle Launcher Grenade Launcher Build | -11 -10 -10 -10 -9 -8 ------- Run | Yrd Mat Min Exi Min Mat Slots Evolved 4 | . . . . . 4 Power 1 | . . . . . 1 Propulsion 1 | . . . . . 1 Utility 2 | . . . . . 2 Weapon . | . . . . . . Parts Attached 25 | 8 10 . . 6 1 Power 5 | 2 1 . . 2 . Engine 5 | 2 1 . . 2 . Core . | . . . . . . Reactor . | . . . . . . Propulsion 8 | 2 3 . . 3 . Treads . | . . . . . . Leg . | . . . . . . Wheel 2 | 2 . . . . . Hover . | . . . . . . Flight 6 | . 3 . . 3 . Utility 5 | 1 3 . . . 1 Device 1 | 1 . . . . . Storage 1 | . 1 . . . . Processor 2 | . 2 . . . . Hackware 1 | . . . . . 1 Protection . | . . . . . . Artifact . | . . . . . . Weapon 7 | 3 3 . . 1 . Energy Gun 4 | 2 2 . . . . Energy Cannon . | . . . . . . Ballistic Gun 1 | 1 . . . . . Ballistic Cannon . | . . . . . . Launcher 2 | . 1 . . 1 . Special Weapon . | . . . . . . Impact Weapon . | . . . . . . Slashing Weapon . | . . . . . . Piercing Weapon . | . . . . . . Special Melee Weapon . | . . . . . . Unidentified Prototypes . | . . . . . . Parts Lost 5 | . . . . 3 2 Power 1 | . . . . 1 . Propulsion 2 | . . . . 1 1 Utility . | . . . . . . Weapon 2 | . . . . 1 1 Highest Loss Streak 2 | . . . . 2 2 To Critical Strikes 1 | . . . . . 1 Average Backups 4 | 2 3 4 5 4 3 Power . | . . . . . . Propulsion . | 1 1 1 . . . Utility . | . . . 1 1 1 Weapon 1 | . 1 2 2 1 1 Tool/Special . | . . . . . . Unused Backups 8 | . 2 1 1 . 4 Power . | . . . . . . Propulsion 3 | . 2 1 . . . Utility 2 | . . . 1 . 1 Weapon . | . . . . . . Tool/Special 3 | . . . . . 3 Average Slot Usage (%) 94 | . 87 100 100 96 75 Engine 12 | . 14 14 14 11 9 Wheel 2 | . 14 . . . . Flight 24 | . 14 28 28 28 24 Device 1 | . 7 . . . . Processor 22 | . 7 28 28 28 18 Energy Gun 24 | . 18 28 28 25 17 Launcher 2 | . 8 . . 1 . Peak Build Rating 13 | 6 8 9 10 11 13 Average Rating 8 | 4 6 8 9 9 12 On Entrance 7 | . 6 8 9 10 10 Naked Turns . | . . . . . . Heaviest Build 13 | 10 13 5 5 8 5 Greatest Support 20 | 10 20 8 8 8 12 Greatest Overweight (x) 1 | . 1 . . . . Average Overweight (x) . | . . . . . . Largest Inventory Capacity 5 | 5 5 5 5 5 5 Average Capacity 5 | 5 5 5 5 5 5 Most Carried 5 | 4 5 5 5 5 4 Average Carried 4 | 2 3 4 4 4 3 Final Capacity 5 | 5 5 5 5 5 5 Final Carried 5 | 4 4 5 5 5 3 Class Distribution -------------------- 75% | Mutant 24% | Scavenger-Mutant Dominant Class ---------------- Mutant | -10/Materials Mutant | -10/Mines Mutant | -10/Exiles Scavenger-Mutant | -9/Mines Scavenger-Mutant | -8/Materials Resources | -11 -10 -10 -10 -9 -8 ----------- Run | Yrd Mat Min Exi Min Mat Matter Collected 639 | 287 54 67 . 173 58 Remotely . | . . . . . . Salvage Created 417 | 45 139 . . 115 118 Parts 45 | 2 19 . . 18 6 Haulers Intercepted . | . . . . . . Recyclers Shooed 1 | . . . . 1 . Parts Field Recycled . | . . . . . . Retrieved Matter . | . . . . . . Parts Self-Destructed . | . . . . . . Prevented . | . . . . . . Kills | -11 -10 -10 -10 -9 -8 ------- Run | Yrd Mat Min Exi Min Mat Combat Hostiles Destroyed 19 | 1 5 . . 11 2 Guns 9 | 1 2 . . 4 2 AOE 10 | . 3 . . 7 . Classes Destroyed 8 | 1 5 . . . 2 Worker 2 | . 2 . . . . Builder 3 | . 2 . . 1 . Tunneler 2 | . 1 . . 1 . Operator 1 | . . . . . 1 Watcher 2 | . 2 . . . . Swarmer 14 | . 3 . . 11 . Grunt 4 | 1 2 . . . 1 Brawler 1 | . . . . . 1 Best Kill Streak 8 | 1 8 . . 8 2 Combat Bots Only 7 | 1 3 . . 7 2 Max Kills in Single Turn 5 | 1 5 . . 4 1 Gunslinging . | . . . . . . Exploded 4 | . 2 . . 4 . Melee . | . . . . . . Uniques/NPCs Destroyed . | . . . . . . Combat | -11 -10 -10 -10 -9 -8 -------- Run | Yrd Mat Min Exi Min Mat Hostile Shots Fired 73 | 7 8 . . 49 9 Missed 27 | 4 4 . . 17 2 Hits 46 | 3 4 . . 32 7 Melee 2 | . . . . . 2 Projectile 44 | 3 4 . . 32 5 Critical Strikes 2 | . . . . 1 1 Damage Taken 504 | 33 39 . . 327 105 Core 90 | 10 18 . . 49 13 Absorbed by Shields . | . . . . . . Core Remaining (%) 82 | 96 . . . 69 . Volleys Fired 55 | 8 12 . 1 22 12 Largest 2 | 2 2 . 2 2 2 Hottest 100 | 70 100 . 80 80 80 Shots Fired 91 | 14 19 . 2 35 21 Gun 80 | 14 13 . 2 30 21 Cannon . | . . . . . . Launcher 11 | . 6 . . 5 . Special . | . . . . . . Kinetic 7 | 7 . . . . . Thermal 73 | 7 13 . 2 30 21 Explosive 11 | . 6 . . 5 . Electromagnetic . | . . . . . . Robot Hit Streak 5 | 4 4 . . 5 4 Robot Miss Streak 5 | 1 2 . . 5 2 Penetration Max . | . . . . . . Secondary Targets 2 | . . . . 2 . Max Gunslinging Chain 1 | . . . . 1 . Shots Hit Robots 45 | 8 10 . . 16 11 Core Hits 39 | 2 16 . . 14 7 Critical Kills . | . . . . . . Critical Parts Destroyed . | . . . . . . Critical Strikes . | . . . . . . Melee Attacks . | . . . . . . Impact . | . . . . . . Slashing . | . . . . . . Piercing . | . . . . . . Sneak Attacks . | . . . . . . Combat Hostiles . | . . . . . . Follow-up Attacks . | . . . . . . Damage Inflicted 1739 | 93 906 . . 619 121 Guns 496 | 93 93 . . 189 121 Cannons . | . . . . . . Explosions 1243 | . 813 . . 430 . Melee . | . . . . . . Ramming . | . . . . . . Kinetic 44 | 44 . . . . . Thermal 452 | 49 93 . . 189 121 Explosive 1243 | . 813 . . 430 . Electromagnetic . | . . . . . . Impact . | . . . . . . Slashing . | . . . . . . Piercing . | . . . . . . Highest Corruption 4 | . . . . . 4 Average Corruption 1 | . . . . . 1 Corruption Purged . | . . . . . . Corruption Blocked . | . . . . . . Overload Shots . | . . . . . . Overflow Damage 114 | . 102 . . 12 . Projectiles . | . . . . . . Explosions 114 | . 102 . . 12 . Melee . | . . . . . . Knockbacks . | . . . . . . Impact . | . . . . . . Kinetic . | . . . . . . Secondary . | . . . . . . Self-Inflicted Damage 61 | . . . . 61 . Shots 2 | . . . . 2 . Rammed . | . . . . . . Targets Rammed . | . . . . . . Kicked . | . . . . . . Crushed . | . . . . . . Highest Temperature 131 | 82 50 . 26 131 88 Average Temperature 47 | 36 17 . 16 63 46 Received Heat Transfer 75 | 18 12 . . . 45 Siege Activations . | . . . . . . Martial Activations . | . . . . . . Shielding Activations . | . . . . . . Robots Disrupted . | . . . . . . Combat Hostiles . | . . . . . . Robots Corrupted . | . . . . . . Combat Hostiles . | . . . . . . Parts Fried . | . . . . . . Impact Corruptions . | . . . . . . Robots Melted . | . . . . . . Combat Hostiles . | . . . . . . Parts Melted 1 | . . . . . 1 Heat Transferred 1120 | 148 272 . . 425 275 Parts Sabotaged . | . . . . . . Parts Stolen . | . . . . . . Parts Stripped . | . . . . . . Power Chain Reactions . | . . . . . . Alert | -11 -10 -10 -10 -9 -8 ------- Run | Yrd Mat Min Exi Min Mat Maximum Alert Level 1 | . 1 . . . . Low Security (%) 85 | 100 45 100 . 100 100 Level 1 14 | . 54 . . . . Level 2 . | . . . . . . Level 3 . | . . . . . . Level 4 . | . . . . . . Level 5 . | . . . . . . High Security . | . . . . . . Max Security . | . . . . . . Peak Influence 261 | 20 261 92 . 199 53 Initial 92 | . . 92 . . 53 Average 93 | 2 140 77 . 124 38 Influence Increases 702 | 20 318 . . 309 55 Destroy 0b10 Robot/C 380 | 20 100 . . 220 40 Destroy 0b10 Robot/NC 50 | . 35 . . 10 5 Destroy Leader 64 | . 24 . . 30 10 Disable Machine 105 | . 105 . . . . Destroy Structure 88 | . 54 . . 34 . Lose Combat Pursuer 15 | . . . . 15 . Influence Decreases 654 | 20 80 176 62 170 146 Entered New Map 294 | . . 146 62 . 86 Time Decay 310 | 20 80 30 . 140 40 Lost Part 50 | . . . . 30 20 Squads Dispatched 1 | . 1 . . . . Investigation . | . . . . . . Extermination . | . . . . . . Reinforcement 1 | . 1 . . . . Assault . | . . . . . . Garrison . | . . . . . . Intercept . | . . . . . . Searches Triggered . | . . . . . . Construction Impeded . | . . . . . . Haulers Reinforced . | . . . . . . Active Scanning Responses . | . . . . . . Cargo Convoy Interrupts . | . . . . . . Stealth | -11 -10 -10 -10 -9 -8 --------- Run | Yrd Mat Min Exi Min Mat Distress Signals 1 | . 1 . . . . Communications Jammed . | . . . . . . Distress Signals . | . . . . . . Times Spotted 27 | 1 10 . . 12 4 Peak Tracking Total 4 | 1 4 . . 4 3 Tactical Retreats 1 | . . . . 1 . Traps | -11 -10 -10 -10 -9 -8 ------- Run | Yrd Mat Min Exi Min Mat Traps Triggered . | . . . . . . Indirectly . | . . . . . . Trap Hack Attempts . | . . . . . . Triggered . | . . . . . . Disarmed . | . . . . . . Reprogrammed . | . . . . . . Reused . | . . . . . . Traps Extracted . | . . . . . . Installed . | . . . . . . Triggered . | . . . . . . Machines | -11 -10 -10 -10 -9 -8 ---------- Run | Yrd Mat Min Exi Min Mat Machines Disabled 7 | . 7 . . . . Max in Single Turn 4 | . 4 . . . . Machines Repaired . | . . . . . . Machines Dismantled . | . . . . . . Machines Sabotaged . | . . . . . . Overloaded Fab Kills . | . . . . . . Hacking | -11 -10 -10 -10 -9 -8 --------- Run | Yrd Mat Min Exi Min Mat Machines Accessed 6 | . . . 5 . 1 Terminals 1 | . . . . . 1 Fabricators . | . . . . . . Repair Stations . | . . . . . . Recycling Units . | . . . . . . Scanalyzers . | . . . . . . Garrison Access . | . . . . . . Total Hacks 55 | . . . 50 . 5 Successful 54 | . . . 50 . 4 Failed 1 | . . . . . 1 Catastrophic . | . . . . . . Database Lockouts . | . . . . . . Manual 7 | . . . 7 . . Terminals 5 | . . . . . 5 Fabricators . | . . . . . . Repair Stations . | . . . . . . Recycling Units . | . . . . . . Scanalyzers . | . . . . . . Garrison Access . | . . . . . . Terminal Hacks 54 | . . . 50 . 4 Record 52 | . . . 49 . 3 Alert Level 1 | . . . . . 1 Proto ID Catalog 1 | . . . 1 . . Fabricator Hacks . | . . . . . . Repair Station Hacks . | . . . . . . Recycling Unit Hacks . | . . . . . . Scanalyzer . | . . . . . . Garrison Access Hacks . | . . . . . . Unauthorized Hacks . | . . . . . . Terminals . | . . . . . . Fabricators . | . . . . . . Repair Stations . | . . . . . . Recycling Units . | . . . . . . Scanalyzers . | . . . . . . Garrison Access . | . . . . . . Data Cores Recovered 1 | . . . . . 1 Used 1 | . . . . . 1 Hacking Detections 1 | . . . . . 1 Full Trace Events 1 | . . . . . 1 Feedback Events 1 | . . . . . 1 Corruption 1 | . . . . . 1 Feedback Blocked . | . . . . . . Robot Schematics Acquired . | . . . . . . Robots Built . | . . . . . . Authchips . | . . . . . . Time . | . . . . . . Total Robot Build Rating . | . . . . . . Part Schematics Acquired . | . . . . . . Parts Built . | . . . . . . Authchips . | . . . . . . Time . | . . . . . . Total Part Build Rating . | . . . . . . Parts Repaired . | . . . . . . Time . | . . . . . . Parts Recycled . | . . . . . . Recycled Matter . | . . . . . . Retrieved Matter . | . . . . . . Retrieved Components . | . . . . . . Parts Scanalyzed . | . . . . . . Part Schematics Acquired . | . . . . . . Parts Damaged . | . . . . . . Bothacking | -11 -10 -10 -10 -9 -8 ------------ Run | Yrd Mat Min Exi Min Mat Used RIF Installer . | . . . . . . Robots Hacked . | . . . . . . Non-combat . | . . . . . . Combat . | . . . . . . Robot Hacks Applied . | . . . . . . Relay Couplers Released . | . . . . . . Fabnet Peak Effective % . | . . . . . . Robots Rewired . | . . . . . . Allies Hacked . | . . . . . . Hacks Repelled . | . . . . . . Allies | -11 -10 -10 -10 -9 -8 -------- Run | Yrd Mat Min Exi Min Mat Total Allies . | . . . . . . Largest Group . | . . . . . . Highest-Rated Group . | . . . . . . Highest-Rated Ally . | . . . . . . Total Orders . | . . . . . . Ally Attacks . | . . . . . . Total Damage . | . . . . . . Kills . | . . . . . . Allies Corrupted . | . . . . . . Allies Melted . | . . . . . . Intel | -11 -10 -10 -10 -9 -8 ------- Run | Yrd Mat Min Exi Min Mat Active Infowar (turns) 889 | . 75 78 367 284 85 Optics 889 | . 75 78 367 284 85 Robot Analysis Total . | . . . . . . Derelict Logs Recovered 2 | . . . . 2 . Drone Launches . | . . . . . . Drone Recoveries . | . . . . . . Exploration | -11 -10 -10 -10 -9 -8 ------------- Run | Yrd Mat Min Exi Min Mat Turns Passed 1159 | 137 208 78 367 284 85 Spaces Moved 2106 | 113 255 197 913 497 131 Core 18 | 18 . . . . . Treads . | . . . . . . Legs . | . . . . . . Wheels 172 | 95 77 . . . . Hover . | . . . . . . Flight 1916 | . 178 197 913 497 131 Fastest Speed 34 | 50 37 37 37 37 34 Average Speed 40 | 75 51 37 37 37 34 Slowest Speed 117 | 80 117 37 37 40 37 Overloaded Moves . | . . . . . . Propulsion Burnouts . | . . . . . . Robots Hopped 2 | . 1 . . 1 . Potential Cave-ins . | . . . . . . Cave-ins Triggered . | . . . . . . Time Travels 1 | . . . . . 1 Exploration Rate (%) 44 | 6 38 26 95 86 13 Regions Visited 5 Branch Regions 3 Pre-discovered Areas 2 | . . . 1 1 . Known Exits Taken 4 | . 1 1 1 1 . Unknown Exits Taken 1 | 1 . . . . . Scrap Searched 2 | . . 1 . 1 . Spaces Dug . | . . . . . . Terrain Destroyed 97 | . 51 . . 46 . Melee . | . . . . . . Projectile . | . . . . . . AOE 97 | . 51 . . 46 . Terrain Rammed . | . . . . . . Walls Destroyed . | . . . . . . Machines Disabled . | . . . . . . Actions | -11 -10 -10 -10 -9 -8 --------- Run | Yrd Mat Min Exi Min Mat Total 2314 | 151 312 203 940 558 150 Wait 72 | 13 8 . 23 26 2 Move 2097 | 112 252 196 912 494 131 Hop 2 | . 1 . . 1 . Pick Up 33 | 10 12 4 2 3 2 Fast Attach 3 | . . . . 3 . Attach 16 | 6 6 . . 2 2 Detach 1 | . 1 . . . . Swap 15 | 2 9 . . 4 . Drop 20 | . 11 3 2 3 1 Fire 55 | 8 12 . 1 22 12 Melee . | . . . . . . Ram . | . . . . . . Kick . | . . . . . . Crush . | . . . . . . Escape Stasis . | . . . . . . Rewire . | . . . . . . Trap . | . . . . . . Miscellaneous . | . . . . . . Route ------- -11/Scrapyard -10/Materials (discovered 3 exits: [*Mat] / *Min x2) -10/Mines -10/Exiles (discovered 2 exits: *Min x2) -9/Mines -8/Materials (discovered 1 exit: Fac) History --------- Turn | Location | Event 2 | -11/Scrapyard | Met Revision 17 53 | -11/Scrapyard | Discovered new exit (range 8) 138 | -11/Scrapyard | Entered Materials 222 | -10/Materials | Discovered new exit (range 11) 285 | -10/Materials | Discovered new exit (range 14) 307 | -10/Materials | Identified exit to Mines 317 | -10/Materials | Build established: Mutant 328 | -10/Materials | Discovered exit to Mines (range 11) 346 | -10/Materials | Entered Mines 355 | -10/Mines | Deemed a non-threat by the Exiles lab entrance 355 | -10/Mines | Discovered new exit (range 5) 359 | -10/Mines | Met a Derelict bent on vengeance 365 | -10/Mines | Found a damaged Exp. Sensor Array with a note attached 366 | -10/Mines | Found Prototype Device 391 | -10/Mines | Received a Rocket Launcher from a helpful Derelict 423 | -10/Mines | Identified exit to Exiles 424 | -10/Mines | Entered Exiles 430 | -10/Exiles | Discovered new exit (range 16) 435 | -10/Exiles | Identified exit to Mines 443 | -10/Exiles | Met 8R-AWN 454 | -10/Exiles | Met EX-HEX 473 | -10/Exiles | Met EX-DEC 500 | -10/Exiles | Learned location of Zion (-7) 522 | -10/Exiles | Discovered exit to Mines (range 14) 556 | -10/Exiles | Met EX-BIN 578 | -10/Exiles | Aligned with FarCom system 578 | -10/Exiles | Given EX-Vault access code 603 | -10/Exiles | Opened EX-Vault 627 | -10/Exiles | Warned to stay clear of 0b10 Research branches 663 | -10/Exiles | Visited The Gauntlet 752 | -10/Exiles | Found Chronowheel 756 | -10/Exiles | Found Modified TNC 791 | -10/Exiles | Stole two prototypes: Modified TNC, Chronowheel 791 | -10/Exiles | Entered Mines 896 | -9/Mines | Discovered new exit (range 13) 917 | -9/Mines | Identified exit to Materials 973 | -9/Mines | Destroyed 7 combat bots 1037 | -9/Mines | Learned 4 Materials zone layouts 1075 | -9/Mines | Entered Materials 1075 | -8/Materials | Evolved 4 slots: Power x1, Propulsion x1, Utility x2 1076 | -8/Materials | Identified exit to Factory 1076 | -8/Materials | Activated Chronowheel 1076 | -8/Materials | Spacetime reconverged on an earlier point 1160 | -8/Materials | Self-destructed Last Messages --------------- effectiveness is cancelled out as the continued expansion of [Complex 0b10] causes priorities to shift. Many early experiments with turrets encountered either a high rate of [Derelict] hacking or were simply circumvented since they are unable to respond dynamically like a normal patrol. The only remaining active turret array is installed near an old passage in the [Caves] leading to [Recycling]. >>Alert(Check) Current Alert Level: Low Security Feedback: System corruption (+1%). Flight Unit destroyed. Lgt. Nuclear Core melted. G-47 Trooper destroyed. Critical hit (Smash). Sml. Laser destroyed. System corrupted by crushing effect (+3). B-36 Bruiser destroyed. Acquired 45 matter. Map ----- +----------------------------------------------------+ | | | | | | | | | | | | | | | ############?????????#######?????????????????????? | | [ #????????# #?????????????????????? | | #????????# """ #?????????????????????? | | #????????# """ #?????????????????????? | | #????????# """ #?????????????????????? | | / !#????????# #?????????????????????? | | #????????# #?????????????????????? | | ####+##################+##+#?????????????????????? | | # o ????????????? | | + """?????????????????? | | g # """?????????????????? | | ### ################### ##?????????????????????? | | ??# #?????????????????# #??????????????????????? | | ??# #?????????????????# #??????????????????????? | | ??# #???????######????# #??????????????????????? | | ??# #??????##!!!!##???# #??????????????????????? | | ??# #??????#! !#???#*#??????????????????????? | | ?## ##?????# #???#!#???####???????????????? | | ?# ####### #####@## #???????????????? | | ?# =[=% #???????????????? | | ?# T / " #???????????????? | | ?# #???????????????? | | ?# ##########+#+####+### #???????????????? | | ####+###??????# #??????######???????????????? | | ??????????# = #??????????????Y????????????? | | ??????????# #???????????????????????????? | | ??????????# #???????????????????????????? | | ??????????# ]#???????????????????????????? | | " "??????????# #???????????????????????????? | | "G"??????????########???????????????????????????? | | " ?????????????????????????????????????????????? | | ?????????????????????????????????????????????? | | ####?????????????????????????????????????????????? | | ?????????????????????????????????????????????????? | | ?????????????????????????????????????????????????? | | ?????????????????????????????????????????????????? | | ?????????????????????????????????????????????????? | | ?????????????????????????????????????????????????? | | ?????????????????????????????????????????????????? | | ####?????????????????????????????????????????????? | | ?????????????????????????????????????????????? | | ?????????????????????????????????????????????? | | ?????????????????????????????????????????????? | +----------------------------------------------------+ Best States ------------- Heat Dissipation 35 Energy Generation 10 Energy Capacity 250 Matter Stores 300 Matter Capacity 400 Sight Range 18 Terrain Scan Density 10 Evasion (%) 63 Offensive Hacking 10 Item Schematics ----------------- None Robot Schematics ------------------ None Fabricated ------------ Nothing Repaired ---------- Nothing Alien Tech Used ----------------- None Achievements -------------- Dynamic Key Librarian Storm Trooper Tourist Uninvited Guest Challenges ------------ None Game ------ Seed IntegrityReactiveExtractor Manual? 0 Play Time 01:57:53 Cumulative 1.9 hours Start 2025.07.13 @ 09:06:22 End 2025.07.13 @ 21:42:39 Sessions 5 Manual Loads 0 Difficulty Rogue Special Mode None Game No. 1 Rogue 1 Adventurer 0 Explorer 0 Win Type - Total 0 Types 0/0/0/0/0/0/0/0/0/0 Lore% 5 Gallery% 1 Achievement% 2 Wizard Run 0 Options --------- Layout 1 ASCII 0 Keyboard 0 Movement Mouse Keybinds 0 Fullscreen 1 Font 24/Crisp Map View 50x35 Zoom Use 0% Tactical HUD 0 Map Filters NONE Filters NONE Steam 1 RUN: 98696db0-38a8-4791-a18b-df1f617f184f